[Event "Djerba Festival Blitz 2025"]
[Site "Djerba"]
[Date "2025.02.21"]
[Round "7.10"]
[White "Amrane, Abdellah"]
[Black "Viers, Emmanuel"]
[Result "0-1"]
[ECO "B72"]
[WhiteElo "2021"]
[BlackElo "2072"]
[PlyCount "118"]
[EventDate "2025.02.15"]
[EventType "swiss"]
[EventCountry "TUN"]
[TimeControl "180+3"]

1. e4 {[%emt 0:00:05]} c5 {[%emt 0:00:03]} 2. Nf3 {[%emt 0:00:02]} Nc6 {[%emt 0:00:02]} 3. d4 {[%emt 0:00:06]} cxd4 {[%emt 0:00:01]} 4. Nxd4 {[%emt 0:00:02]} g6 {[%emt 0:00:02]} 5. Nc3 {[%emt 0:00:03]} Bg7 {[%emt 0:00:02]} 6. Be3 {[%emt 0:00:09]} Nf6 {[%emt 0:00:02]} 7. Be2 {[%emt 0:00:11]} d5 {[%emt 0:00:03]} 8. exd5 {[%emt 0:00:05]} Nxd5 {[%emt 0:00:02]} 9. Nxc6 {[%emt 0:00:19]} bxc6 {[%emt 0:00:02]} 10. Nxd5 {[%emt 0:00:08]} Qxd5 {[%emt 0:00:02]} 11. Qxd5 {[%emt 0:00:04]} cxd5 {[%emt 0:00:01]} 12. Bb5+ {[%emt 0:00:01]} Bd7 {[%emt 0:00:04]} 13. Bxd7+ {[%emt 0:00:02]} Kxd7 {[%emt 0:00:02]} 14. O-O-O {[%emt 0:00:03]} e6 {[%emt 0:00:08]} 15. Kb1 {[%emt 0:00:05]} Rhc8 {[%emt 0:00:08]} 16. Rd3 {[%emt 0:00:08]} a5 {[%emt 0:00:05]} 17. a4 {[%emt 0:00:05]} Rab8 {[%emt 0:00:13]} 18. b3 {[%emt 0:00:08]} Bc3 {[%emt 0:00:32]} 19. Bf4 {[%emt 0:00:15]} Rb7 {[%emt 0:00:03]} 20. Bd2 {[%emt 0:00:17]} Bxd2 {[%emt 0:00:11]} 21. Rxd2 {[%emt 0:00:01]} Rc4 {[%emt 0:00:21]} 22. Kc1 {[%emt 0:00:10]} Re4 {[%emt 0:00:15]} 23. f3 {[%emt 0:00:30]} Re3 {[%emt 0:00:29]} 24. Kd1 {[%emt 0:00:02]} Kc6 {[%emt 0:00:06]} 25. Rd4 {[%emt 0:00:13]} Kc5 {[%emt 0:00:07]} 26. Rh4 {[%emt 0:00:04]} h5 {[%emt 0:00:04]} 27. Kd2 {[%emt 0:00:02]} Re5 {[%emt 0:00:03]} 28. Rf4 {[%emt 0:00:06]} d4 {[%emt 0:00:27]} 29. h4 {[%emt 0:00:18]} Kd5 {[%emt 0:00:14]} 30. Rd1 {[%emt 0:00:03]} Re3 {[%emt 0:00:15]} 31. Kc1 {[%emt 0:00:49]} e5 {[%emt 0:00:04]} 32. Rf6 {[%emt 0:00:00]} Rc7 {[%emt 0:00:03]} 33. Ra6 {[%emt 0:00:00]} Rxb3 {[%emt 0:00:06]} 34. Rxa5+ {[%emt 0:00:00]} Ke6 {[%emt 0:00:02]} 35. Re1 {[%emt 0:00:00]} f6 {[%emt 0:00:04]} 36. Kd1 {[%emt 0:00:02]} Rb1+ {[%emt 0:00:04]} 37. Kd2 {[%emt 0:00:01]} Rxe1 {[%emt 0:00:04]} 38. Kxe1 {[%emt 0:00:02]} Rxc2 {[%emt 0:00:01]} 39. Kf1 {[%emt 0:00:01]} Ra2 {[%emt 0:00:03]} 40. Ra8 {[%emt 0:00:08]} Kf5 {[%emt 0:00:04]} 41. g3 {[%emt 0:00:05]} e4 {[%emt 0:00:22]} 42. Ra5+ Ke6 {[%emt 0:00:00]} 43. fxe4 {[%emt 0:00:04]} f5 {[%emt 0:00:00]} 44. exf5+ {[%emt 0:00:06]} gxf5 {[%emt 0:00:00]} 45. Ke1 {[%emt 0:00:02]} Kf6 {[%emt 0:00:05]} 46. Rd5 {[%emt 0:00:02]} Rxa4 {[%emt 0:00:03]} 47. Ke2 {[%emt 0:00:04]} Ke6 {[%emt 0:00:02]} 48. Rd8 {[%emt 0:00:02]} Ke5 {[%emt 0:00:02]} 49. Rh8 {[%emt 0:00:04]} Ra2+ {[%emt 0:00:02]} 50. Kf3 {[%emt 0:00:05]} Ra3+ {[%emt 0:00:02]} 51. Kf2 {[%emt 0:00:01]} Ke4 {[%emt 0:00:03]} 52. Rxh5 {[%emt 0:00:03]} d3 {[%emt 0:00:02]} 53. Rh8 {[%emt 0:00:06]} Ra2+ {[%emt 0:00:03]} 54. Ke1 {[%emt 0:00:01]} Rg2 {[%emt 0:00:03]} 55. Rg8 {[%emt 0:00:03]} Kf3 {[%emt 0:00:04]} 56. h5 {[%emt 0:00:02]} Rh2 {[%emt 0:00:02]} 57. Rg5 {[%emt 0:00:02]} Ke3 {[%emt 0:00:03]} 58. Rxf5 {[%emt 0:00:11]} Rh1+ {[%emt 0:00:02]} 59. Rf1 {[%emt 0:00:02]} d2+ {[%emt 0:00:02]} 0-1

[Event "Djerba Festival Blitz 2025"]
[Site "Djerba"]
[Date "2025.02.21"]
[Round "7.11"]
[White "Ajbara Jamal"]
[Black "Amdouni, Zoubaier"]
[Result "0-1"]
[ECO "D35"]
[WhiteElo "1898"]
[BlackElo "2229"]
[PlyCount "34"]
[EventDate "2025.02.15"]
[EventType "swiss"]
[EventCountry "TUN"]
[TimeControl "180+3"]

1. d4 {[%emt 0:00:06]} Nf6 {[%emt 0:00:03]} 2. Nf3 {[%emt 0:00:03]} e6 {[%emt 0:00:03]} 3. c4 {[%emt 0:00:02]} d5 {[%emt 0:00:02]} 4. Nc3 {[%emt 0:00:03]} c6 {[%emt 0:00:03]} 5. cxd5 {[%emt 0:00:05]} exd5 {[%emt 0:00:02]} 6. Bg5 {[%emt 0:00:06]} Bd6 {[%emt 0:00:02]} 7. e3 {[%emt 0:00:02]} Nbd7 {[%emt 0:00:08]} 8. Bd3 {[%emt 0:00:03]} Nf8 {[%emt 0:00:02]} 9. h3 {[%emt 0:00:06]} Ng6 {[%emt 0:00:03]} 10. e4 {[%emt 0:00:21]} dxe4 {[%emt 0:00:02]} 11. Nxe4 {[%emt 0:00:04]} Be7 {[%emt 0:00:43]} 12. Ng3 {[%emt 0:00:19]} Bb4+ {[%emt 0:00:18]} 13. Bd2 {[%emt 0:00:15]} Qe7+ {[%emt 0:00:28]} 14. Ne2 {[%emt 0:00:17]} Nf4 {[%emt 0:00:11]} 15. Bxb4 {[%emt 0:00:56]} Qxb4+ {[%emt 0:00:03]} 16. Nc3 {[%emt 0:00:11]} Qxb2 {[%emt 0:00:14]} 17. Qe2+ {[%emt 0:00:39]} Nxe2 {[%emt 0:00:04]} 0-1

[Event "Djerba Festival Blitz 2025"]
[Site "Djerba"]
[Date "2025.02.21"]
[Round "7.12"]
[White "Bouzidi, Ahmed"]
[Black "MEZGOURI NOUREDDINE"]
[Result "1-0"]
[ECO "B01"]
[WhiteElo "2168"]
[BlackElo "1891"]
[PlyCount "83"]
[EventDate "2025.02.15"]
[EventType "swiss"]
[EventCountry "TUN"]
[TimeControl "180+3"]

1. e4 {[%emt 0:00:03]} d5 {[%emt 0:00:04]} 2. exd5 {[%emt 0:00:02]} Nf6 {[%emt 0:00:02]} 3. d4 {[%emt 0:00:02]} Nxd5 {[%emt 0:03:06]} 4. Nf3 Bf5 {[%emt 0:00:00]} 5. c3 {[%emt 0:00:08]} e6 {[%emt 0:00:00]} 6. Bd3 {[%emt 0:00:03]} Bg4 {[%emt 0:00:00]} 7. O-O {[%emt 0:00:03]} Be7 {[%emt 0:00:00]} 8. Nbd2 {[%emt 0:00:03]} O-O {[%emt 0:00:00]} 9. Nc4 {[%emt 0:00:05]} Nd7 {[%emt 0:00:00]} 10. h3 {[%emt 0:00:05]} Bh5 {[%emt 0:00:00]} 11. Ne3 {[%emt 0:00:23]} N7b6 {[%emt 0:00:00]} 12. Ng4 {[%emt 0:00:08]} Bxg4 13. hxg4 {[%emt 0:00:03]} c5 {[%emt 0:00:00]} 14. Qe2 {[%emt 0:00:21]} Bf6 {[%emt 0:00:00]} 15. g5 {[%emt 0:00:14]} Be7 {[%emt 0:00:00]} 16. Qe4 {[%emt 0:00:03]} g6 {[%emt 0:00:00]} 17. g3 {[%emt 0:00:04]} cxd4 {[%emt 0:00:00]} 18. Qxd4 {[%emt 0:00:17]} Nb4 {[%emt 0:00:00]} 19. Qxd8 {[%emt 0:00:08]} Raxd8 {[%emt 0:00:00]} 20. Be4 {[%emt 0:00:03]} Nc6 {[%emt 0:00:00]} 21. Kg2 {[%emt 0:00:04]} f5 {[%emt 0:00:00]} 22. gxf6 {[%emt 0:00:10]} Bxf6 {[%emt 0:00:00]} 23. Bh6 {[%emt 0:00:03]} Bg7 {[%emt 0:00:00]} 24. Bg5 {[%emt 0:00:10]} Bf6 {[%emt 0:00:00]} 25. Rad1 {[%emt 0:00:02]} Nd5 {[%emt 0:00:00]} 26. c4 {[%emt 0:00:06]} Ndb4 {[%emt 0:00:02]} 27. a3 {[%emt 0:00:04]} Rxd1 {[%emt 0:00:02]} 28. Rxd1 {[%emt 0:00:04]} Na6 {[%emt 0:00:17]} 29. Bh6 {[%emt 0:00:12]} Rd8 {[%emt 0:00:17]} 30. Rxd8+ {[%emt 0:00:10]} Nxd8 {[%emt 0:00:03]} 31. b4 {[%emt 0:00:05]} b6 {[%emt 0:00:06]} 32. Bf4 {[%emt 0:00:06]} e5 {[%emt 0:00:20]} 33. Bd5+ {[%emt 0:00:06]} Kg7 {[%emt 0:00:03]} 34. Nxe5 {[%emt 0:00:04]} Nc7 {[%emt 0:00:04]} 35. Nc6 {[%emt 0:00:42]} Nxd5 {[%emt 0:00:05]} 36. cxd5 {[%emt 0:00:04]} a6 {[%emt 0:00:10]} 37. Bc7 {[%emt 0:00:07]} Nb7 {[%emt 0:00:09]} 38. Bxb6 {[%emt 0:00:04]} Kf7 {[%emt 0:00:02]} 39. f4 {[%emt 0:00:04]} Ke8 {[%emt 0:00:02]} 40. Ne5 {[%emt 0:00:04]} g5 {[%emt 0:00:04]} 41. Bc5 {[%emt 0:00:04]} gxf4 {[%emt 0:00:08]} 42. gxf4 {[%emt 0:00:16]} 1-0

[Event "Djerba Festival Blitz 2025"]
[Site "Djerba"]
[Date "2025.02.21"]
[Round "7.14"]
[White "Doucet, Pierre-Alois"]
[Black "Rene, Benoit"]
[Result "1-0"]
[ECO "B08"]
[WhiteElo "2027"]
[BlackElo "2108"]
[PlyCount "64"]
[EventDate "2025.02.15"]
[EventType "swiss"]
[EventCountry "TUN"]
[TimeControl "180+3"]

1. e4 {[%emt 0:00:04]} g6 {[%emt 0:00:03]} 2. d4 {[%emt 0:00:02]} Bg7 {[%emt 0:00:02]} 3. Nc3 {[%emt 0:00:02]} d6 {[%emt 0:00:01]} 4. Nf3 {[%emt 0:00:02]} Nf6 {[%emt 0:00:03]} 5. Be2 {[%emt 0:00:03]} O-O {[%emt 0:00:02]} 6. O-O {[%emt 0:00:02]} Bg4 {[%emt 0:00:02]} 7. h3 {[%emt 0:00:02]} Bxf3 8. Bxf3 {[%emt 0:00:02]} Nc6 {[%emt 0:00:04]} 9. Be3 {[%emt 0:00:04]} e5 {[%emt 0:00:02]} 10. d5 {[%emt 0:00:02]} Ne7 {[%emt 0:00:03]} 11. Be2 {[%emt 0:00:03]} Nd7 {[%emt 0:00:02]} 12. Qd2 {[%emt 0:00:15]} f5 {[%emt 0:00:02]} 13. f3 {[%emt 0:00:02]} Nf6 {[%emt 0:00:08]} 14. Bd3 {[%emt 0:00:16]} Kh8 {[%emt 0:00:26]} 15. Ne2 {[%emt 0:02:47]} f4 {[%emt 0:00:06]} 16. Bf2 {[%emt 0:00:00]} g5 {[%emt 0:00:01]} 17. c4 {[%emt 0:00:06]} Ng6 18. b4 {[%emt 0:00:00]} h5 {[%emt 0:02:50]} 19. g4 {[%emt 0:00:00]} Nh4 {[%emt 0:00:00]} 20. Bxh4 gxh4 {[%emt 0:00:00]} 21. Kh2 {[%emt 0:00:00]} Bh6 {[%emt 0:00:00]} 22. c5 {[%emt 0:00:00]} Rg8 {[%emt 0:00:00]} 23. Rg1 {[%emt 0:00:00]} Rg5 {[%emt 0:00:00]} 24. Rac1 {[%emt 0:00:00]} Qf8 {[%emt 0:00:00]} 25. Qe1 {[%emt 0:00:00]} Qe7 {[%emt 0:00:00]} 26. cxd6 {[%emt 0:00:00]} cxd6 {[%emt 0:00:00]} 27. Kh1 {[%emt 0:00:00]} Rag8 {[%emt 0:00:00]} 28. Qxh4 {[%emt 0:00:00]} Qg7 {[%emt 0:00:07]} 29. Rg2 {[%emt 0:00:00]} Rg6 {[%emt 0:00:13]} 30. Rcg1 {[%emt 0:00:00]} Bg5 {[%emt 0:00:04]} 31. Qe1 {[%emt 0:00:00]} Qh6 {[%emt 0:00:05]} 32. Rh2 {[%emt 0:00:00]} Qg7 {[%emt 0:00:00]} 1-0

[Event "Djerba Festival Blitz 2025"]
[Site "Djerba"]
[Date "2025.02.21"]
[Round "7.15"]
[White "Boulrens, Ala Eddine"]
[Black "Chelly, Yahya"]
[Result "0-1"]
[ECO "B13"]
[WhiteElo "2121"]
[BlackElo "2106"]
[PlyCount "66"]
[EventDate "2025.02.15"]
[EventType "swiss"]
[EventCountry "TUN"]
[TimeControl "180+3"]

1. e4 {[%emt 0:03:06]} c6 2. d4 {[%emt 0:00:03]} d5 {[%emt 0:03:09]} 3. exd5 cxd5 4. c4 {[%emt 0:00:06]} Nf6 {[%emt 0:00:06]} 5. Nc3 Nc6 {[%emt 0:00:03]} 6. h3 {[%emt 0:00:06]} e6 {[%emt 0:00:03]} 7. Nf3 dxc4 {[%emt 0:00:03]} 8. Bxc4 {[%emt 0:00:06]} Be7 {[%emt 0:00:03]} 9. O-O {[%emt 0:00:03]} O-O {[%emt 0:00:03]} 10. Bf4 {[%emt 0:00:03]} a6 {[%emt 0:00:03]} 11. Re1 {[%emt 0:00:03]} b5 {[%emt 0:00:03]} 12. Bb3 {[%emt 0:00:03]} Bb7 {[%emt 0:00:03]} 13. d5 {[%emt 0:00:03]} exd5 {[%emt 0:00:03]} 14. Nxd5 {[%emt 0:00:03]} Nxd5 {[%emt 0:00:03]} 15. Bxd5 Bf6 {[%emt 0:00:03]} 16. Rc1 {[%emt 0:00:06]} Qb6 {[%emt 0:00:03]} 17. Be3 {[%emt 0:00:03]} Qc7 {[%emt 0:00:03]} 18. Qc2 {[%emt 0:00:03]} Rac8 {[%emt 0:00:03]} 19. Qf5 {[%emt 0:00:03]} Qb8 {[%emt 0:00:03]} 20. Qh5 {[%emt 0:00:03]} Nb4 {[%emt 0:00:03]} 21. Bxb7 {[%emt 0:00:03]} Qxb7 {[%emt 0:00:03]} 22. Bc5 {[%emt 0:00:03]} Nd3 {[%emt 0:00:03]} 23. Bxf8 {[%emt 0:00:03]} Rxf8 {[%emt 0:00:03]} 24. b3 {[%emt 0:00:03]} Nxe1 {[%emt 0:00:03]} 25. Rxe1 {[%emt 0:00:03]} Qc7 {[%emt 0:00:03]} 26. Qf5 {[%emt 0:00:03]} Qc3 {[%emt 0:00:03]} 27. Qd5 {[%emt 0:00:03]} g6 {[%emt 0:00:03]} 28. Qb7 {[%emt 0:00:03]} Qa5 {[%emt 0:00:03]} 29. Re2 {[%emt 0:00:03]} Bg7 {[%emt 0:00:03]} 30. g3 {[%emt 0:00:03]} Qc3 {[%emt 0:00:03]} 31. Kg2 {[%emt 0:00:03]} Qa5 {[%emt 0:00:03]} 32. Rd2 {[%emt 0:00:03]} Qa3 {[%emt 0:00:03]} 33. Qe7 {[%emt 0:00:03]} Qxe7 {[%emt 0:00:03]} 0-1

[Event "Djerba Festival Blitz 2025"]
[Site "Djerba"]
[Date "2025.02.21"]
[Round "7.16"]
[White "Minde, Baptiste"]
[Black "Nassr, Lina"]
[Result "1-0"]
[ECO "D02"]
[WhiteElo "1896"]
[BlackElo "1934"]
[PlyCount "47"]
[EventDate "2025.02.15"]
[EventType "swiss"]
[EventCountry "TUN"]
[TimeControl "180+3"]

1. d4 {[%emt 0:00:03]} d5 {[%emt 0:00:02]} 2. Bf4 {[%emt 0:00:03]} Nf6 {[%emt 0:00:03]} 3. e3 {[%emt 0:00:02]} e6 {[%emt 0:00:02]} 4. Nf3 {[%emt 0:00:03]} Bd6 {[%emt 0:00:02]} 5. Bg3 {[%emt 0:00:02]} c5 {[%emt 0:00:02]} 6. c3 {[%emt 0:00:02]} O-O {[%emt 0:00:03]} 7. Nbd2 {[%emt 0:00:03]} Nc6 {[%emt 0:00:02]} 8. Bd3 {[%emt 0:00:02]} b6 {[%emt 0:00:06]} 9. Ne5 {[%emt 0:00:05]} Bb7 {[%emt 0:00:02]} 10. O-O {[%emt 0:00:15]} Ne7 {[%emt 0:00:10]} 11. Bh4 {[%emt 0:00:09]} Nf5 {[%emt 0:00:20]} 12. Bxf6 {[%emt 0:00:18]} gxf6 {[%emt 0:00:17]} 13. Qg4+ {[%emt 0:00:29]} Kh8 {[%emt 0:00:22]} 14. Nef3 {[%emt 0:00:03]} Ng7 {[%emt 0:00:37]} 15. Qh4 {[%emt 0:00:18]} f5 {[%emt 0:00:43]} 16. Ng5 {[%emt 0:00:02]} h5 {[%emt 0:00:02]} 17. Be2 {[%emt 0:00:02]} Be7 {[%emt 0:00:16]} 18. f4 {[%emt 0:00:02]} f6 {[%emt 0:00:06]} 19. Nxe6 {[%emt 0:00:21]} Nxe6 {[%emt 0:00:24]} 20. Qxh5+ {[%emt 0:00:03]} Kg8 {[%emt 0:00:04]} 21. Rf3 {[%emt 0:00:07]} Ng7 {[%emt 0:00:04]} 22. Rg3 {[%emt 0:00:02]} Qe8 {[%emt 0:00:03]} 23. Qh6 {[%emt 0:00:08]} Qf7 {[%emt 0:00:14]} 24. Bh5 {[%emt 0:00:02]} 1-0

[Event "Djerba Festival Blitz 2025"]
[Site "Djerba"]
[Date "2025.02.21"]
[Round "7.17"]
[White "Tahir, Abderrahmane"]
[Black "Kaabi, Iheb"]
[Result "0-1"]
[ECO "A07"]
[WhiteElo "1891"]
[BlackElo "1810"]
[PlyCount "162"]
[EventDate "2025.02.15"]
[EventType "swiss"]
[EventCountry "TUN"]
[TimeControl "180+3"]

1. Nf3 {[%emt 0:00:03]} Nf6 {[%emt 0:00:03]} 2. g3 {[%emt 0:00:01]} g6 {[%emt 0:00:02]} 3. Bg2 {[%emt 0:00:01]} Bg7 {[%emt 0:00:02]} 4. d3 {[%emt 0:00:01]} d5 {[%emt 0:00:02]} 5. Nbd2 {[%emt 0:00:02]} O-O {[%emt 0:00:03]} 6. O-O {[%emt 0:00:02]} Re8 {[%emt 0:00:01]} 7. e4 {[%emt 0:00:01]} dxe4 {[%emt 0:00:02]} 8. dxe4 {[%emt 0:00:02]} Nc6 {[%emt 0:00:08]} 9. c3 {[%emt 0:00:03]} e5 {[%emt 0:00:02]} 10. Qc2 {[%emt 0:00:03]} Be6 {[%emt 0:00:04]} 11. Ng5 {[%emt 0:00:03]} Bd7 {[%emt 0:00:05]} 12. Nc4 {[%emt 0:00:10]} h6 {[%emt 0:00:05]} 13. Nf3 {[%emt 0:00:01]} b5 {[%emt 0:00:20]} 14. Ne3 {[%emt 0:00:03]} b4 {[%emt 0:00:07]} 15. Rd1 {[%emt 0:00:07]} bxc3 {[%emt 0:00:10]} 16. bxc3 {[%emt 0:00:02]} Qe7 {[%emt 0:00:17]} 17. Nd5 {[%emt 0:00:02]} Nxd5 {[%emt 0:00:02]} 18. exd5 {[%emt 0:00:02]} Nd8 {[%emt 0:00:08]} 19. a4 {[%emt 0:00:03]} Rb8 {[%emt 0:00:05]} 20. Ba3 {[%emt 0:00:01]} Bf5 {[%emt 0:00:18]} 21. Qd2 {[%emt 0:01:09]} Qd7 {[%emt 0:00:05]} 22. d6 {[%emt 0:00:04]} cxd6 {[%emt 0:00:15]} 23. Bxd6 {[%emt 0:00:06]} Rc8 {[%emt 0:00:05]} 24. Bb4 {[%emt 0:00:06]} Qxd2 {[%emt 0:01:44]} 25. Rxd2 {[%emt 0:02:00]} Nc6 {[%emt 0:00:00]} 26. Nh4 {[%emt 0:00:00]} Nxb4 {[%emt 0:00:00]} 27. Nxf5 {[%emt 0:00:00]} gxf5 {[%emt 0:00:00]} 28. cxb4 {[%emt 0:00:00]} e4 {[%emt 0:00:00]} 29. Bh3 {[%emt 0:00:00]} Bxa1 {[%emt 0:00:00]} 30. Bxf5 {[%emt 0:00:00]} Rcd8 {[%emt 0:00:00]} 31. Ra2 {[%emt 0:00:00]} Bc3 {[%emt 0:00:00]} 32. b5 {[%emt 0:00:00]} e3 {[%emt 0:00:00]} 33. fxe3 {[%emt 0:00:00]} Rxe3 {[%emt 0:00:00]} 34. a5 {[%emt 0:00:00]} Re1+ {[%emt 0:00:00]} 35. Kf2 {[%emt 0:00:00]} Rd2+ {[%emt 0:00:00]} 36. Rxd2 {[%emt 0:00:00]} Bxd2 {[%emt 0:00:00]} 37. b6 {[%emt 0:00:00]} axb6 {[%emt 0:00:00]} 38. axb6 {[%emt 0:00:00]} Re8 {[%emt 0:00:00]} 39. b7 {[%emt 0:00:00]} Rb8 {[%emt 0:00:00]} 40. Bc8 {[%emt 0:00:00]} Kf8 {[%emt 0:00:00]} 41. Kf3 {[%emt 0:00:00]} Ke7 {[%emt 0:00:00]} 42. Ke4 {[%emt 0:00:00]} Kf6 {[%emt 0:00:04]} 43. Kd5 {[%emt 0:00:00]} Ke7 {[%emt 0:00:06]} 44. Kc6 {[%emt 0:00:00]} Bc3 {[%emt 0:00:04]} 45. Bf5 {[%emt 0:00:00]} Be5 {[%emt 0:00:05]} 46. Bc8 {[%emt 0:00:02]} Kd8 {[%emt 0:00:07]} 47. Kd5 {[%emt 0:00:02]} f6 {[%emt 0:00:03]} 48. Ke6 {[%emt 0:00:02]} h5 {[%emt 0:00:11]} 49. Kf5 {[%emt 0:00:08]} h4 {[%emt 0:00:06]} 50. gxh4 {[%emt 0:00:03]} Bxh2 {[%emt 0:00:03]} 51. h5 {[%emt 0:00:07]} Ke7 {[%emt 0:00:03]} 52. h6 {[%emt 0:00:21]} Kf7 {[%emt 0:00:08]} 53. Be6+ {[%emt 0:00:06]} Kf8 {[%emt 0:00:02]} 54. Bc8 {[%emt 0:00:11]} Be5 {[%emt 0:00:06]} 55. Kg6 {[%emt 0:00:05]} Kg8 {[%emt 0:00:02]} 56. Be6+ {[%emt 0:00:16]} Kh8 {[%emt 0:00:03]} 57. Bc8 {[%emt 0:00:02]} Bc3 {[%emt 0:00:06]} 58. h7 {[%emt 0:00:08]} Be5 {[%emt 0:00:04]} 59. Kf5 {[%emt 0:00:06]} Kxh7 {[%emt 0:00:03]} 60. Ke6 {[%emt 0:00:02]} Kg6 {[%emt 0:00:02]} 61. Kd5 {[%emt 0:00:04]} Kg5 {[%emt 0:00:03]} 62. Kc6 {[%emt 0:00:03]} f5 {[%emt 0:00:04]} 63. Kd5 {[%emt 0:00:02]} Bh2 {[%emt 0:00:03]} 64. Kd4 {[%emt 0:00:03]} f4 {[%emt 0:00:04]} 65. Kd3 {[%emt 0:00:03]} Bg3 {[%emt 0:00:06]} 66. Ke4 {[%emt 0:00:02]} Kf6 {[%emt 0:00:03]} 67. Kf3 {[%emt 0:00:03]} Ke5 {[%emt 0:00:02]} 68. Ke2 {[%emt 0:00:05]} Ke4 {[%emt 0:00:03]} 69. Kf1 {[%emt 0:00:03]} Ke3 {[%emt 0:00:03]} 70. Kg2 {[%emt 0:00:03]} Ke4 {[%emt 0:00:15]} 71. Kf1 {[%emt 0:00:03]} Kf3 {[%emt 0:00:02]} 72. Kg1 {[%emt 0:00:02]} Ke2 {[%emt 0:00:03]} 73. Kg2 {[%emt 0:00:02]} f3+ {[%emt 0:00:04]} 74. Kxg3 {[%emt 0:00:02]} f2 {[%emt 0:00:01]} 75. Bg4+ {[%emt 0:00:02]} Ke1 {[%emt 0:00:03]} 76. Bh3 {[%emt 0:00:03]} f1=Q 77. Bxf1 {[%emt 0:00:02]} Kxf1 {[%emt 0:00:05]} 78. Kf4 {[%emt 0:00:01]} Rxb7 {[%emt 0:00:03]} 79. Ke5 {[%emt 0:00:02]} Rb4 {[%emt 0:00:02]} 80. Kd5 {[%emt 0:00:01]} Ke2 {[%emt 0:00:02]} 81. Kc5 {[%emt 0:00:02]} Rh4 {[%emt 0:00:02]} 0-1

[Event "Djerba Festival Blitz 2025"]
[Site "Djerba"]
[Date "2025.02.21"]
[Round "7.18"]
[White "Papaux, Steve"]
[Black "Dejardin, Gregoire"]
[Result "0-1"]
[ECO "E07"]
[WhiteElo "2204"]
[BlackElo "1932"]
[PlyCount "80"]
[EventDate "2025.02.15"]
[EventType "swiss"]
[EventCountry "TUN"]
[TimeControl "180+3"]

1. d4 {[%emt 0:00:05]} c6 {[%emt 0:00:02]} 2. c4 {[%emt 0:00:03]} d5 {[%emt 0:00:02]} 3. Nf3 {[%emt 0:00:03]} Nf6 {[%emt 0:00:02]} 4. Nc3 {[%emt 0:00:02]} e6 {[%emt 0:00:02]} 5. g3 {[%emt 0:00:04]} Be7 {[%emt 0:00:02]} 6. Bg2 {[%emt 0:00:03]} O-O {[%emt 0:00:02]} 7. O-O {[%emt 0:00:03]} Nbd7 {[%emt 0:00:02]} 8. Qd3 {[%emt 0:00:03]} b6 {[%emt 0:00:06]} 9. e4 {[%emt 0:00:02]} dxe4 {[%emt 0:00:02]} 10. Nxe4 {[%emt 0:00:03]} Bb7 {[%emt 0:00:06]} 11. Rd1 {[%emt 0:00:04]} Qc8 {[%emt 0:00:07]} 12. Bh3 {[%emt 0:00:13]} Nxe4 {[%emt 0:00:10]} 13. Qxe4 {[%emt 0:00:03]} Nf6 {[%emt 0:00:07]} 14. Qe2 {[%emt 0:00:02]} Re8 {[%emt 0:00:17]} 15. Bf4 {[%emt 0:00:41]} Qd8 {[%emt 0:00:06]} 16. Ne5 {[%emt 0:00:12]} Bd6 {[%emt 0:00:13]} 17. Bg2 {[%emt 0:00:13]} Rc8 {[%emt 0:00:02]} 18. c5 {[%emt 0:00:04]} Bb8 {[%emt 0:00:08]} 19. b4 {[%emt 0:00:12]} Nd5 {[%emt 0:00:03]} 20. a3 {[%emt 0:00:04]} f6 {[%emt 0:00:13]} 21. Nd3 {[%emt 0:00:08]} Nc3 {[%emt 0:00:04]} 22. Qg4 {[%emt 0:00:18]} Nxd1 {[%emt 0:00:06]} 23. Rxd1 {[%emt 0:00:02]} Qe7 {[%emt 0:00:17]} 24. Re1 {[%emt 0:00:12]} Qf7 {[%emt 0:00:06]} 25. Bh3 {[%emt 0:00:13]} Bxf4 {[%emt 0:00:19]} 26. gxf4 {[%emt 0:00:18]} Ba6 {[%emt 0:00:12]} 27. Re3 {[%emt 0:00:20]} Bxd3 {[%emt 0:00:04]} 28. Rxd3 {[%emt 0:00:02]} Rcd8 {[%emt 0:00:05]} 29. Bg2 {[%emt 0:00:08]} Qc7 {[%emt 0:00:18]} 30. Qf3 {[%emt 0:00:02]} Rd5 {[%emt 0:00:11]} 31. Re3 {[%emt 0:00:17]} Rxd4 {[%emt 0:00:13]} 32. Qe2 {[%emt 0:00:08]} Qxf4 {[%emt 0:00:18]} 33. Bxc6 {[%emt 0:00:03]} Red8 {[%emt 0:00:09]} 34. Kg2 {[%emt 0:00:08]} e5 {[%emt 0:00:08]} 35. Qa2+ {[%emt 0:00:05]} Kh8 {[%emt 0:00:06]} 36. Rg3 {[%emt 0:00:04]} Rd2 {[%emt 0:00:07]} 37. Qf7 {[%emt 0:00:04]} Rxf2+ {[%emt 0:00:08]} 38. Kh3 {[%emt 0:00:02]} Qf5+ {[%emt 0:00:04]} 39. Rg4 {[%emt 0:00:03]} Rd3+ {[%emt 0:00:03]} 40. Kh4 {[%emt 0:00:02]} Rxh2# {[%emt 0:00:04]} 0-1